{"text_format":"1","workbook":"xlsx","n_sheets":3,"sheets":["ProgramOfStudy","Temp","Temp2"],"not_rendered":{"charts":0,"images":0,"macros":1,"external_links":0,"defined_names":3,"comments":0,"pivot_tables":0},"unopened":[],"bounds":{"document_bytes":16777216,"sheet_cells":100000,"rows_first":2000,"rows_last":500,"rows_between":2000,"halvings":0,"cell_chars":16384,"cell_head_chars":4096},"cells_cut":0,"cells_raw":0,"read":"whole","date_system":"1900"}

{"sheet":"ProgramOfStudy","index":0,"n_rows":121,"n_cols":40,"rows_kept":121,"cut":false,"hidden":false,"merged":[[26,3,28,3],[53,6,55,6],[53,9,55,9],[65,16,68,16],[28,13,32,13],[73,4,77,4],[71,16,72,20],[47,18,48,18],[47,19,49,19],[39,19,41,19],[28,7,32,7],[26,9,28,9],[39,18,40,18],[65,19,68,19],[55,3,58,3],[36,3,37,3],[44,3,45,3],[46,3,48,3],[44,12,45,12],[44,15,45,15],[38,3,40,3],[38,6,40,6],[65,9,67,9],[3,40,7,40],[3,28,7,28],[10,30,14,30],[10,33,14,33],[3,33,7,33],[3,30,7,30],[3,31,7,31],[10,40,14,40],[10,37,14,37],[10,34,14,34],[10,31,14,31],[10,28,14,28],[10,36,14,36],[10,39,14,39],[3,39,7,39],[3,36,7,36],[3,34,7,34],[3,37,7,37],[12,18,12,20],[3,27,7,27],[10,27,14,27],[10,9,13,9],[6,9,7,9],[3,9,4,9],[6,18,7,18],[3,15,5,15],[9,13,13,13],[10,15,12,15],[4,12,5,12],[6,15,7,15],[9,16,13,16],[3,19,6,19],[3,13,6,13],[2,16,6,16],[4,18,5,18],[9,18,9,19],[10,12,11,12],[106,1,106,20],[120,1,120,8],[119,9,119,11],[119,12,119,19],[117,1,117,8],[103,1,103,2],[17,3,19,3],[17,12,19,12],[17,15,19,15],[17,9,19,9],[63,7,68,7],[29,16,32,16],[65,10,68,10],[65,13,68,13],[66,18,67,18],[36,10,41,10],[57,15,58,15],[57,12,58,12],[77,6,78,20],[64,3,66,3],[69,2,69,3],[120,9,120,11],[118,1,118,8],[119,1,119,8],[101,0,101,20],[117,9,117,11],[118,9,118,11],[114,9,114,11],[116,9,116,11],[117,12,117,19],[118,12,118,19],[120,12,120,19],[104,3,104,18],[112,1,112,8],[113,1,113,8],[114,1,114,8],[115,1,115,8],[116,1,116,8],[115,12,115,19],[99,3,99,19],[100,3,100,20],[99,1,99,2],[115,9,115,11],[112,12,112,19],[116,12,116,19],[111,1,111,19],[113,12,113,19],[114,12,114,19],[60,18,60,20],[58,18,58,20],[53,7,59,7],[96,1,96,2],[89,10,89,11],[94,1,94,2],[97,3,97,20],[85,12,85,19],[102,1,102,2],[113,9,113,11],[104,1,104,2],[105,0,105,20],[112,9,112,11],[102,3,102,20],[88,1,88,9],[89,1,89,9],[98,1,98,2],[98,3,98,18],[29,15,31,15],[53,18,54,20],[37,15,38,15],[31,18,31,20],[26,10,32,10],[29,9,31,9],[30,18,30,20],[56,13,59,13],[56,16,59,16],[44,9,45,9],[107,0,107,20],[108,1,108,2],[108,3,108,18],[109,1,109,2],[109,3,109,18],[110,1,110,2],[110,3,110,18],[100,1,100,2],[93,3,93,19],[97,1,97,2],[10,3,11,3],[0,19,0,20],[2,10,6,10],[92,1,92,2],[95,0,95,20],[80,10,80,20],[81,10,81,11],[82,10,82,11],[90,0,90,20],[88,12,88,19],[91,1,91,2],[91,3,91,18],[87,1,87,9],[87,10,87,11],[88,10,88,11],[81,12,81,19],[89,12,89,20],[93,1,93,2],[84,10,84,11],[85,10,85,11],[80,0,80,9],[83,10,83,11],[86,10,86,11],[92,3,92,18],[9,7,13,7],[36,9,37,9],[36,12,37,12],[0,0,0,2],[33,18,33,20],[44,10,49,10],[38,9,40,9],[38,12,40,12],[2,7,6,7],[2,1,14,1],[2,2,7,2],[3,6,4,6],[9,2,14,2],[10,6,11,6],[9,4,13,4],[2,4,6,4],[17,13,23,13],[17,16,23,16],[3,3,4,3],[6,3,7,3],[6,6,7,6],[36,7,41,7],[9,10,13,10],[20,3,22,3],[22,18,22,20],[20,6,21,6],[19,7,23,7],[17,10,23,10],[39,15,41,15],[103,3,103,19],[20,15,21,15],[26,4,32,4],[17,4,23,4],[46,15,48,15],[66,15,67,15],[96,3,96,18],[44,16,49,16],[37,16,41,16],[86,1,86,9],[29,3,31,3],[29,6,30,6],[66,12,67,12],[46,9,47,9],[56,6,58,6],[56,9,57,9],[54,4,59,4],[36,6,37,6],[73,3,74,3],[53,1,69,1],[53,2,60,2],[29,12,31,12],[20,12,22,12],[20,9,21,9],[36,13,41,13],[53,10,59,10],[44,4,49,4],[63,6,65,6],[63,4,68,4],[46,6,48,6],[36,4,41,4],[66,6,67,6],[44,7,49,7],[46,12,48,12],[44,13,49,13],[17,1,33,1],[17,2,24,2],[26,2,33,2],[36,1,50,1],[36,2,42,2],[44,2,50,2],[44,6,45,6],[62,2,68,2]]}
["R13\n5/22/20",null,null,null,null,null,null,null,null,null,"ME Undergraduate Curriculum (Catalog: 2020 - 2021)",null,null,null,null,null,null,null,null,null,null,null,null,null,null,null,null,"You must fill credit hours into the Extra Classes to be used in the schedule."]
[]
[null,"1st Year","Fall","CHEM 1310",null,null,"MATH 1551",null,null,"MATH 1553",null,null,null,null,null,"ENGL 1101"]
[null,null,null,"General\nChemistry",null,null,"Differential Calculus",null,null,"Linear Algebra",null,null,"Legislative",null,null,"English Composition 1",null,null,"Wellness",null,null,null,null,null,null,null,null,"Extra Class",null,null,"Extra Class",null,null,"Extra Class",null,null,"Extra Class",null,null,"Extra Class"]
[null,null,null,null,null,null,null,null,null,null,null,null,"HIST 2111, HIST 2112,\nPOL 1101, INTA 1200,\nor PUBP 3000",null,null,null,null,null,"APPH 1040 or APPH 1050"]
[null,null,null,"(See Note 2)",null,null,"(Minimum Grade C)",null,null,"(Minimum Grade C)"]
[null,null,null,"3-3-4",null,null,"2-0-2",null,null,"2-0-2",null,null,"[ Social Science ]",null,null,"3-0-3",null,null,"2-0-2"]
[null,null,null,null,null,null,null,null,null,null,null,null,"3-0-3"]
[]
[null,null,"Spring","PHYS 2211",null,null,"MATH 1552",null,null,"CS 1371",null,null,"ME 1670",null,null,"ENGL 1102",null,null,"= 16 hours"]
[null,null,null,"Physics 1",null,null,"Integral Calculus",null,null,"Computing for Engineers",null,null,"Engineering\nGraphcs & Design",null,null,"English Composition 2",null,null,null,null,null,null,null,null,null,null,null,"Extra Class",null,null,"Extra Class",null,null,"Extra Class",null,null,"Extra Class",null,null,"Extra Class"]
[]
[null,null,null,"(Minimum Grade C)",null,null,"(Minimum Grade C)",null,null,null,null,null,"(Same as ME 1770)",null,null,null,null,null,"= 17 hours"]
[null,null,null,"3-3-4",null,null,"4-0-4",null,null,null,null,null,"(See Note 3, No W's)",null,null,"3-0-3"]
[null,null,null,"MATH 1551, MATH 1552*",null,null,"MATH 1551",null,null,"3-0-3",null,null,"2-3-3",null,null,"ENGL 1101"]
[]
[]
[null,"2nd Year","Fall","PHYS 2212",null,null,null,null,null,"ME 2110",null,null,"MSE 2001",null,null,"COE 2001"]
[null,null,null,null,null,null,null,null,null,null,null,null,null,null,null,null,null,null,null,null,null,null,null,null,null,null,null,"NOTES:"]
[null,null,null,null,null,null,"MATH 2551"]
[null,null,null,"Physics 2",null,null,"Multivariable Calculus",null,null,"Creative Decisions\nand Design",null,null,"Engineering\nMaterials",null,null,"Statics"]
[]
[null,null,null,null,null,null,"(Minimum Grade C)",null,null,"(See Note 3, No W's)",null,null,null,null,null,"(Minimum Grade C)",null,null,"= 16 hours"]
[null,null,null,"3-3-4",null,null,"4-0-4",null,null,"2-3-3",null,null,"3-0-3",null,null,"2-0-2"]
[null,null,null,"PHYS 2211",null,null,"MATH 1552, MATH 1553",{"$f":"MAX(4-SUM(H18:H19),0)","v":4},null,"ME 1670, COE 2001*",null,null,"CHEM 1310",null,null,"MATH 1552, PHYS 2211"]
[]
[null,null,"Spring","ECE 3710",null,null,null,null,null,"ME 2016"]
[]
[null,null,null,null,null,null,"MATH 2552",null,null,null,null,null,"ME 2202"]
[null,null,null,"Circuits &\nElectronics",null,null,"Differential\nEquations",null,null,"Computing Techniques",null,null,"Dynamics of\nRigid Bodies",null,null,"Social Science Elective"]
[null,null,null,null,null,null,null,null,null,null,null,null,null,null,null,null,null,null,"= 15 hours"]
[null,null,null,null,null,null,"(Minimum Grade C)"]
[null,null,null,"2-0-2",null,null,"4-0-4",null,null,"3-0-3",null,null,"3-0-3",null,null,"(See Page 2)"]
[null,null,null,"PHYS 2212",null,null,"MATH 1552, MATH 1553",{"$f":"MAX(4-SUM(H27:H28),0)","v":4},null,"MATH 1552, MATH 1553, MATH 2552*, CS 1371",null,null,"COE 2001, MATH 1553*",null,null,"3-0-3",{"$f":"MAX(3-Q27-Q28-Q29,0)","v":3},null,"= 16 hours"]
[]
[]
[null,"3rd Year","Fall","ECE 3741",null,null,"COE 3001",null,null,"ME 3322",null,null,"ME 3340"]
[null,null,null,null,null,null,null,null,null,null,null,null,null,null,null,"Economics"]
[null,null,null,"Instrument &\nElectronics Lab",null,null,"Mechanics of Deformable Bodies",null,null,"Thermo-\ndynamics",null,null,"Fluid\nMechanics"]
[null,null,null,null,null,null,null,null,null,null,null,null,null,null,null,"ECON 2100, 2101, \n2105, or 2106\n(See Note 1)",null,null,"Humanities Elective"]
[]
[null,null,null,"0-3-1",null,null,"3-0-3",null,null,"3-0-3",null,null,"3-0-3",null,null,null,null,null,"(See Page 2)"]
[null,null,null,"ECE 3710",null,null,"COE 2001, \nMATH 2552*",null,null,"PHYS 2211, MATH 2552",null,null,"ME 2202, MATH 2551\nMATH 2552, ME 3322*",null,null,"3-0-3",null,null,"3-0-3",{"$f":"MAX(3-T37-T38-T39,0)","v":3}]
[]
[null,null,"Spring","ME 3017",null,null,"ME 3345",null,null,"ME 3057",null,null,"ISYE 3025",null,null,"MATH 3670"]
[]
[null,null,null,"System  Dynamics",null,null,"Heat Transfer",null,null,"Experimental Methods Lab",null,null,"Engineering Economics",null,null,"Statistics & Applications"]
[null,null,null,null,null,null,null,null,null,null,null,null,null,null,null,null,null,null,"Social Science Elective"]
[null,null,null,null,null,null,null,null,null,"(See Note 3, No W's)"]
[null,null,null,"3-0-3",null,null,"3-0-3",null,null,"2-3-3",null,null,"1-0-1",null,null,"3-0-3",null,null,"(See Page 2)"]
[null,null,null,"ME 2202, ME 2016,\nMATH 2552, ECE 3710",null,null,"ME 3322, ME 3340,\nMATH 2552",null,null,"COE 3001, ME 3340,\nME 3017*, ME 3345*,\nMATH 3670*",null,null,"ECON 2100, 2101,\n2105 or 2106",null,null,"MATH 2551",null,null,"3-0-3",{"$f":"MAX(3-T45-T46-T47,0)","v":3}]
[]
[]
[null,"4th Year","Fall",null,null,null,"ME 3210",null,null,"ME 4056",null,null,null,null,null,null,null,null,"= 16 hours"]
[null,null,null,"Design Elective"]
[null,null,null,"ME 3180 or ME 4315\n3180: Machine Design\n4315: Energy Sys Design"]
[null,null,null,null,null,null,"Design, Materials & Manufacture",null,null,"ME Systems \nLab",null,null,"Free Elective",null,null,"Free Elective"]
[null,null,null,null,null,null,null,null,null,null,null,null,"1000 Level or Above",null,null,"1000 Level or Above"]
[null,null,null,null,null,null,null,null,null,"(See Note 3, No W's)",null,null,null,null,null,null,null,null,"= 15 hours"]
[null,null,null,"3-0-3",null,null,"3-0-3",null,null,"2-3-3",null,null,"(See Page 2)",null,null,"(See Page 2)"]
[null,null,null,"ME 2110,\nME 3345 (for ME 4315 only),\nCOE 3001 (for ME 3180 only)",null,null,"MSE 2001, ME 2110,\nCOE 3001",null,null,"ME 3057, ME 3345, \nME 3017, MATH 3670",null,null,"3-0-3",{"$f":"MAX(3-N54-N55-N56,0)","v":3},null,"3-0-3",{"$f":"MAX(3-Q54-Q55-Q56,0)","v":3},null,"= 18 hours"]
[]
[null,null,"Spring"]
[null,null,null,"Capstone Design",null,null,"ME Elective"]
[null,null,null,"ME 4182: ME Design\nor ME 4723: Inter-disciplinary Design"]
[null,null,null,null,null,null,null,null,null,"Humanities Elective",null,null,"Free Elective",null,null,"Free Elective",null,null,"Free Elective"]
[null,null,null,null,null,null,"3000 Level or Above ME Class",null,null,null,null,null,"2000 Level or Above",null,null,"2000 Level or Above",null,null,"2000 Level or Above"]
[null,null,null,"(See Note 3, No W's)"]
[null,null,null,"2-3-3",null,null,"(See Page 2)",null,null,"(See Page 2)",null,null,"(See Page 2)",null,null,"(See Page 2)",null,null,"(See Page 2)"]
[null,null,"COE 3001, MATH 3670       \nME 2110, ME 3210, ME 3017,\nME 3345, (ME 3180 or 4315)",null,null,null,"3-0-3",null,null,"3-0-3",{"$f":"MAX(3-K63-K64-K65,0)","v":3},null,"3-0-3",{"$f":"MAX(3-N63-N64-N65,0)","v":3},null,"3-0-3",{"$f":"MAX(3-Q63-Q64-Q65,0)","v":3},null,"3-0-3",{"$f":"MAX(3-T63-T64-T65,0)","v":3}]
[]
[null,null,null,"Overlay Area",null,null," NOTES:  * Class co-requisites have an asterisk (*) after it.  These classes can be taken ",null,null,null,null,null,null,null,null,null,"129 Total Hours"]
[null,null,null,null,null,null," prior to or at the same time.  "]
[null,null,null,"Ethics",null,null,"  1. Economics: Students can receive credit for only one of ECON 2100, ECON 2101, ECON 2105 & ECON 2106."]
[null,null,null,null,null,null,"     The only exception is that students can receive 6 hours credit for both ECON 2105 and ECON 2106."]
[null,null,null,"(See Page 2)",null,null,"  2. CHEM 1310: CHEM 1211K can substitute for CHEM 1310. CHEM 1211K & 1212K are recommended for pre-health students."]
[null,null,null,null,null,null,"  3. ME 1670, 2110, 3057, 4056, 4182 & 4723 cannot be dropped after phase 2 registration closes without documented medical reasons."]
[null,null,null,"3-0-3",null,null,"http://www.me.gatech.edu/undergraduate/ug-curr"]
[]
[null,null,null,null,null,null,null,null,null,null,"Undergraduate Curriculum Sheet Explanation - Page 2"]
["Understanding the Curriculum Guide",null,null,null,null,null,null,null,null,null,"GPA & Grade Requirements"]
[null,null,null,null,null,null,null,null,null,null,"1.",null,"All classes taken for the BSME degree must be taken \nLETTER GRADE. This includes all electives."]
[null,null,null,null,null,null,null,null,null,null,"2.",null,"Overall GPA: Must be 2.00 or above (truncated) at graduation."]
[null,null,null,null,null,null,null,null,null,null,"3.",null,"Required Grades:"]
[null,null,null,null,null,null,null,null,null,null,"-",null,"Minimum grade of a D or better is required except as noted."]
[null,null,null,null,null,null,null,null,null,null,"-",null,"If a pre-requisite for an ME class requires a C or better, the C is required before taking the next class. Ex: A grade of C or better is required in COE 2001 before taking ME 2202."]
[null,null,null,null,null,null,null,null,null,null,"4.",null,"Major GPA: "]
[null,null,null,null,null,null,null,null,null,null,"-",null,"Must be 2.00 or above (truncated) at graduation."]
[null,"Pre-requisites: These classes must be \ncompleted before you can take the class.",null,null,null,null,null,null,null,null,"-",null,"Classes used to calculate it are all ME and COE classes required by name and number plus MSE 2001, ECE 3710, ECE 3741, ISYE 3025, Design Elective and ME Elective."]
[null,"*Co-requisites: These classes can be taken at the same time or before the class. You must register for the co-req first to avoid registration errors.",null,null,null,null,null,null,null,null,"-",null,"Among the courses used to compute this, all courses must be completed with a C-or-better with the exception up to 9 credit hours, that can be satisfied with a grade of D. "]
["Humanities, Social Sciences and Overlay Requirement (Ethics)"]
[null,"1.",null,"Humanities Electives: See http://catalog.gatech.edu/academics/undergraduate/core-curriculum/core-area-c/ "]
[null,"2.",null,"Social Science Electives: See http://catalog.gatech.edu/academics/undergraduate/core-curriculum/core-area-e/"]
[null,"3.",null,"Ethics Overlay: A 3 hour class selected from http://catalog.gatech.edu/academics/undergraduate/core-curriculum/ethics/"]
[null,"4.",null,"Ethics overlay is taken as a free, humanities or social science elective. It is not intended to be an extra class. "]
["ME Electives"]
[null,"1.",null,"A list of ME Electives offered each semester is at http://www.me.gatech.edu/undergraduate/registration#sp "]
[null,"2.",null,"ME electives are 3000-level or above ME classes, excluding ME 3141, 3700, 3720, 3743, 3744, 4699, 4741, 4742, 4753, 4903 & ME 4803 (patent class).  Other excluded classes may be added to the list throughout the year as new courses are created."]
[null,"3.",null,"ME electives cannot duplicate any material taken in other classes used for your BSME degree."]
[null,"4.",null,"Research and VIP cannot be used to satisfy the ME Elective. They can only be used as free electives (see section below for rules)."]
[null,"5.",null,"Design Electives: Students may take both design electives. One will satisfy the design elective & the other will satisfy the ME Elective."]
["Free Electives"]
[null,"1.",null,"Students can use either a max of 6 credits of VIP (Vertically Integrated Project) courses or a max of 6 credits of research / special problems courses (2699, 4699 & 4903) as free electives.  If doing both types of courses, a total of 9 credits is allowed."]
[null,"2.",null,"At least 9 hours of free electives must be at the 2000 level or above with the exception of 4 hours that may be satisfied with the following:  BIOS 1107/1107L, BIOS 1108/1108L, BIOS 1207/1207L, BIOS 1208/1208L, BIOL 1501, BIOL 1520 or CHEM 1212K."]
[null,"3.",null,"Free electives may not duplicate any material taken in other classes used for your BSME degree."]
["Concentrations (Optional - Not Required)"]
[null,"Concentrations:   Automation & Robotics, Automotive Engineering, Design, Manufacturing, Mechanics of Materials, Micro- & Nano-Engineering, Nuclear Energy, Thermal Fluid & Energy System     See: www.me.gatech.edu/undergraduate/ug-curr/concentrations"]
["Pre-Requisites"]
[null,"1.",null,"The ME curriculum has a 7 or 8 semester pre-requisite chain, depending on the design class selected. "]
[null,"2.",null,"Students can select either ME 3180 or ME 4315 for the design elective. More students select ME 3180."]
[null,"3.",null,"Pre-reqs are strictly enforced in ME.  Carefully plan your schedule in advance and have it checked by an advisor!"]
[null,"Upon completion of these classes, you will have a \nminimum of (…) semesters remaining until graduation."]
[null,"Machine Design (ME 3180)\nfor the Design Elective",null,null,null,null,null,null,null,"Minimum #\nof Semesters",null,null,"Energy Systems Design (ME 4315)\nfor the Design Elective"]
[null,null,null,null,null,null,null,null,null,7,null,null,"MATH 1551"]
[null,"MATH 1551",null,null,null,null,null,null,null,6,null,null,"MATH 1552, PHYS 2211"]
[null,"MATH 1552, PHYS 2211",null,null,null,null,null,null,null,5,null,null,"COE 2001, MATH 1553"]
[null,"COE 2001, MATH 1553",null,null,null,null,null,null,null,4,null,null,"ME 2202, MATH 2551, MATH 2552"]
[null,"MATH 2551, MATH 2552, PHYS 2212, \n     ME 2202, CS 1371, ME 1670, CHEM 1310",null,null,null,null,null,null,null,3,null,null,"ME 1670, ME 3322, ME 3340, CS 1371,\n     PHYS 2212, CHEM 1310"]
[null,"ME 2110, ME 3322, ME 3340, ME 2016\n     ECE 3710, COE 3001, MSE 2001",null,null,null,null,null,null,null,2,null,null,"COE 3001, ME 2110, ME 3345, ME 2016,\n     ECE 3710, MSE 2001"]
[null,"ME 3180, ME 3057, ME 3345, ME 3017\n     ME 3210,  MATH 3670",null,null,null,null,null,null,null,1,null,null,"ME 4315, ME 3017, ME 3057, ME 3210,\n     MATH 3670"]
[null,"ME Elect, ME 4182 or 4723, ME 4056, \n     ECE 3741, ISYE 3025",null,null,null,null,null,null,null,0,null,null,"ME Elect, ME 4182 or 4723, ME 4056, ISYE 3025,\n     ECE 3741"]

{"sheet":"Temp","index":1,"n_rows":53,"n_cols":57,"rows_kept":53,"cut":false,"hidden":true,"merged":[[27,36,38,36],[25,47,36,47],[23,11,34,11]]}
[null,null,null,null,null,null,null,null,null,"Summer 1st Year",null,null,null,null,null,null,null,null,null,null,"Transfer","Class","Row","Column","TextBox","Row2","Col2",null,"Elect Classes","Hours","TextBox",null,null,null,null,null,null,null,null,null,null,null,null,null,null,"Fall 1st Year",null,null,null,null,null,null,null,null,null,null,"Spring 1st Year"]
["Summer Schedule Recommendations",null,null,null,null,null,null,null,null,null,null,"Full Time Enrollment >= 12 Credit Hours",null,null,null,null,null,null,null,null,null,"MATH 1551",0,0,2,0,0,null,"Wellness-APPH 1040/1050",2,46,null,null,null,null,null,"Ideal Fall Schedule",null,null,null,null,null,null,null,null,null,null,"Full Time Enrollment >= 12 Credit Hours"]
["1.","For the summer iGniTe program, you must register for 6-7 credit hours, including GT 1000.",null,null,null,null,null,null,null,null,null,"To meet your desired credit hours, add classes from the other three categories to your \"Priority Classes\".  Start ",null,null,null,null,null,null,null,null,null,"MATH 1552",1,0,7,1,0,null,"Economics",3,25,null,null,null,null,null,"1.","Math (4 hours max)",null,null,"Creating Your Fall Schedule",null,null,null,null,null,null,"1.","To meet your desired credit hours, start with your \"Suggested Spring Schedule\" and add classes from"]
["2.","GT 1000 (1 hour) is required in the summer.",null,null,null,null,null,null,null,null,null,"with \"Classes You Could Take\" and move to the \"Lower Priority\" or \"Elective Options\".  ",null,null,null,null,null,null,null,null,null,"PHYS 2211",1,1,6,1,1,null,"Legislative",3,4,null,null,null,null,null,"2.","Science (1 class only)",null,null,"1.","To build a fall schedule that meets your desired credit hours,",null,null,null,null,null,null,"the \"STEM Options\" and \"Elective Options\".    "]
["3.","We do not recommend COE 2001 in the summer (strongly).",null,null,null,null,null,null,null,null,null,null,null,null,null,null,null,null,null,null,null,"MATH 1553",2,0,3,2,0,null,"Social Science Elective",3,20,null,null,null,null,null,"3.","English",null,null,null,"start with the \"Suggested Schedule\" and add classes from ",null,null,null,null,null,"2.","International students must be full time (>= 12 hours) in fall and spring semesters."]
["4.","We do suggest CHEM 1310 and APPH 1040/1050 over the summer, if you are not expecting the credits.",null,null,null,null,null,null,null,null,null,"Priority Classes You Must Take",null,null,null,null,null,null,null,null,null,"COE 2001",2,1,15,2,1,null,"Social Science Elective",3,32,null,null,null,null,null,"4.","Other (1-2 classes)",null,null,null,"the \"STEM Options\" or \"Elective Options\" to it. "]
[null,null,null,null,null,null,null,null,null,null,null,"Not taking these classes in your 1st term may delay graduation.",null,null,null,null,null,null,null,null,null,"MATH 2551",3,0,12,3,0,null,"Humanities Elective",3,26,null,null,null,null,null,"5.","COE 1000 (optional)",null,null,"2.","Restriction information about fall classes can be found at:",null,null,null,null,null,"Suggested Spring Schedule"]
[null,null,null,null,null,null,null,null,null,null,null,null,null,null,null,null,null,null,null,null,null,"MATH 2552",3,1,17,3,1,null,"Humanities Elective",3,40,null,null,null,null,null,"6.","GT 1000 (optional)",null,null,null,"http://www.me.gatech.edu/files/ug/fallhints.pdf",null,null,null,null,null,"1.","Not taking these classes in the spring may delay graduation."]
["Ideal Fall Schedule",null,null,null,"Creating Your Fall Schedule",null,null,null,null,null,null,"General Advice",null,null,null,null,null,null,null,null,null,"PHYS 2212",3,2,11,4,0,null,"Free Elective 1000+",3,36,null,null,null,null,null,null,null,null,null,null,null,null,null,null,null,null,"2.","This schedule does not account for minors or extra classes you may want such as Grand Challenges, etc."]
["1.","Math (4 hours max)",null,null,"1.","To build a fall schedule that meets your desired credit hours,",null,null,null,null,null,"1.","Be careful with taking CS 1371, ME 1670, ME 2110 and/or ME 2016 together",null,null,null,null,null,null,null,null,"CHEM 1310",3,3,1,4,1,null,"Free Elective 1000+",3,37,null,null,null,null,null,"Fall Schedule Recommendations"]
["2.","Science (1 class only)",null,null,null,"start with the \"Suggested Schedule\" and add classes from ",null,null,null,null,null,null,"- ME 1670: CAD design class with 2 large projects. Moderate amount of group work.",null,null,null,null,null,null,null,null,"ME 2202",3,4,19,3,2,null,"Free Elective 2000+ ",3,41,null,null,null,null,null,"1.","To be a full-time student, you must be enrolled in at least 12 credit hours in any semester.  This includes",null,null,null,null,null,null,null,null,null,"General Advice"]
["3.","English",null,null,null,"the \"STEM Options\" or \"Elective Options\" to it. ",null,null,null,null,null,null,"- ME 2110: Engineering design class with very large project, and small projects. Lots of group work.",null,null,null,null,null,null,null,null,"CS 1371",3,5,8,4,2,null,"Free Elective 2000+ ",3,42,null,null,null,null,null,null,"fall, spring and summer. International students must always be full time in fall and spring semesters.",null,null,null,null,null,null,null,null,null,"1.","Be careful with taking CS 1371, ME 1670, ME 2110 and/or ME 2016 together, especially if you "]
["4.","Other (1-2 classes)",null,null,"2.","Restriction information about fall classes can be found at:",null,null,null,null,null,null,"- CS 1371: Matlab class with lots of programming homework.",null,null,null,null,null,null,null,null,"ME 1670",3,6,9,4,5,null,"Free Elective 2000+ ",3,43,null,null,null,null,null,"2.","A typical schedule in fall and spring semesters is ~14 credit hours.",null,null,null,null,null,null,null,null,null,null,"are also taking a lab science class."]
["5.","COE 1000 (optional)",null,null,null,"http://www.me.gatech.edu/files/ug/fallhints.pdf",null,null,null,null,null,null,"- ME 2016: Computing Techniques contains a fair amount of Matlab programming.",null,null,null,null,null,null,null,null,"ECE 3710",4,0,16,5,0,null,"Ethics Overlay",0,45,null,null,null,null,null,"3.","Do not overload yourself with STEM classes.  Follow the recommendation above.",null,null,null,null,null,null,null,null,null,null,"- ME 1670: CAD design class with 2 large projects. Moderate amount of group work."]
[null,null,null,null,null,null,null,null,null,null,null,"2.","We recommend 12-13 hours if you start in the fall or spring semesters, and 6-9 credits in the summer.",null,null,null,null,null,null,null,null,"COE 3001",4,1,22,5,1,null,null,null,null,null,null,null,null,null,"4.","Students must complete ENGL 1101 and ENGL 1102 by the end of their first year.",null,null,null,null,null,null,null,null,null,null,"- ME 2110: Engineering design class with very large project, and small projects. Lots of group work."]
[null,null,null,null,null,null,null,null,null,null,null,"3.","International students starting in any semester (including summer) must take 12 hours minimum.",null,null,null,null,null,null,null,null,"MSE 2001",4,2,14,5,2,null,null,null,null,null,null,null,null,null,null,null,null,null,null,null,null,null,null,null,null,null,"- CS 1371: Matlab class with lots of programming homework."]
["Fall Schedule Recommendations",null,null,null,null,null,null,null,null,null,null,"4.","ME 1770 is equivalent to ME 1670.  In Fall '20 this course will be ME 1770.  It will be taught as ME 1670",null,null,null,null,null,null,null,null,"ME 2110",4,3,13,5,3,null,null,null,null,null,null,null,null,null,"Notes and Reminders",null,null,null,null,null,null,null,null,null,null,null,"- ME 2016: Computing Techniques contains a fair amount of Matlab programming."]
["1.","To be a full-time student, you must be enrolled in at least 12 credit hours in any semester.  This includes",null,null,null,null,null,null,null,null,null,null,"starting in Spring '21. It does not matter which class you take; you will receive credit for either option.",null,null,null,null,null,null,null,null,"ME 3322",4,4,23,4,3,null,null,null,null,null,null,null,null,null,"1.","If you have no incoming credits (such as AP/IB), you need 16/17 hours each semester to graduate in 4 years.",null,null,null,null,null,null,null,null,null,"2.","To stay on track for a 4 year graduation, most students need ~16 credits per semester, depending "]
[null,"fall, spring and summer. International students must always be full time in fall and spring semesters.",null,null,null,null,null,null,null,null,null,"5.","GT 2000 is a one-credit, letter graded class designed specifically to help students to make a successful ",null,null,null,null,null,null,null,null,"ME 3340",4,5,24,4,4,null,null,null,null,null,null,null,null,null,"2.","ME 1770 is equivalent to ME 1670.  In Fall '20 this course will be ME 1770.  It will be taught as ME 1670",null,null,null,null,null,null,null,null,null,null,"on the number of credits you brought into Georgia Tech."]
["2.","A typical schedule in fall and spring semesters is ~14 credit hours.",null,null,null,null,null,null,null,null,null,null,"transition to Tech. The class covers topics such as resumes, campus resources and academic success.",null,null,null,null,null,null,null,null,"ME 2016",4,6,18,5,5,null,null,null,null,null,null,null,null,null,null,"starting in Spring '21. It does not matter which class you take; you will receive credit for either option.",null,null,null,null,null,null,null,null,null,"4.","ME 1770 is equivalent to ME 1670.  In Fall '20 this course was ME 1770.  ME 1670 is scheduled to start"]
["3.","Do not overload yourself with STEM classes.  Follow the recommendation above.",null,null,null,null,null,null,null,null,null,null,null,null,null,null,null,null,null,null,null,"MATH 3670",5,0,31,6,0,null,null,null,null,null,null,null,null,null,"3.","We do not recommend taking CS 1371 and ME 1770 (ME 1670) together during your 1st semester.",null,null,null,null,null,null,null,null,null,null," in Spring '21. It does not matter which class you take; you will receive credit for either option."]
["4.","Students must complete ENGL 1101 and ENGL 1102 by the end of their first year.",null,null,null,null,null,null,null,null,null,"Graduation Timelines / Pre-Req Charts",null,null,null,null,null,null,null,null,null,"ME 3180",5,1,33,6,1,null,null,null,null,null,null,null,null,null,null,"Both classes are very time consuming.  ",null,null,null,null,null,null,null,null,null,"5.","GT 1000 is available in the spring semester, for students who have not previously taken it."]
[null,null,null,null,null,null,null,null,null,null,null,null,null,null,null,null,null,null,null,null,null,"ME 3057",5,2,29,6,2,null,null,null,null,null,null,null,null,null,"4.","We do not recommend CS 1371 in your 1st semester. This class is major restricted until Phase 2 "]
[null,null,null,null,null,null,null,null,null,null,null,"ME 3180 is the more common option.",null,null,null,"Upon completion of these classes, you will have a minimum of (__) semesters ",null,null,null,null,null,"ME 3345",5,3,28,5,4,null,null,null,null,null,null,null,null,null,null,"registration in August.",null,null,null,null,null,null,null,null,null,"Graduation Timelines / Pre-Req Charts"]
["Notes and Reminders",null,null,null,null,null,null,null,null,null,null,null,null,null,null,"remaining until graduation if you take ME 3180 for your design elective.",null,null,null,null,null,"ME 3017",5,4,27,6,4]
["1.","If you have no incoming credits (such as AP/IB), you need 16/17 hours each semester to graduate in 4 years.",null,null,null,null,null,null,null,null,null,null,"Min Sem.",null,null,"Pre-Req Classes to be Completed",null,null,null,null,null,"ME 3210",5,5,34,6,3,null,null,null,null,null,null,null,null,null,"Graduation Timelines / Pre-Req Charts",null,null,null,null,null,null,null,null,null,null,"ME 3180 is the more common option.",null,null,null,"Upon completion of these classes, you will have a minimum of (__) semesters "]
["2.","ME 1770 is equivalent to ME 1670.  In Fall '20 this course will be ME 1770.  It will be taught as ME 1670",null,null,null,null,null,null,null,null,null,null,6,"MATH 1551",null,null,null,null,null,null,null,"ME Elective",6,0,39,7,0,null,null,null,null,null,null,null,null,null,null,null,null,null,null,null,null,null,null,null,null,null,null,null,null,"remaining until graduation if you take ME 3180 for your design elective."]
[null,"starting in Spring '21. It does not matter which class you take; you will receive credit for either option.",null,null,null,null,null,null,null,null,null,null,5,"MATH 1552","PHYS 2211",null,null,null,null,null,null,"Capstone",6,1,38,7,1,null,null,null,null,null,null,null,null,null,"ME 3180 is the more common option.",null,null,null,"Upon completion of these classes, you will have a minimum of (__) semesters ",null,null,null,null,null,null,null,"Min Sem.",null,null,"Pre-Req Classes to be Completed"]
["3.","We do not recommend taking CS 1371 and ME 1770 (ME 1670) together during your 1st semester.",null,null,null,null,null,null,null,null,null,null,4,"MATH 1553","COE 2001",null,null,null,null,null,null,"ISYE 3025",6,2,30,7,2,null,null,null,null,null,null,null,null,null,null,null,null,null,"remaining until graduation if you take ME 3180 for your design elective.",null,null,null,null,null,null,null,6,"MATH 1551"]
[null,"Both classes are very time consuming.  ",null,null,null,null,null,null,null,null,null,null,3,"MATH 2551","MATH 2552","PHYS 2212","CHEM 1310","ME 2202","CS 1371","ME 1670",null,"ECE 3741",6,3,21,7,3,null,null,null,null,null,null,null,null,null,null,"Min Sem.",null,null,"Pre-Req Classes to be Completed",null,null,null,null,null,null,null,5,"MATH 1552","PHYS 2211"]
["4.","We do not recommend CS 1371 in your 1st semester. This class is major restricted until Phase 2 ",null,null,null,null,null,null,null,null,null,null,2,"ECE 3710","COE 3001","MSE 2001","ME 2110","ME 3322","ME 3340","ME 2016",null,"ME 4056",6,4,35,7,4,null,null,null,null,null,null,null,null,null,null,6,"MATH 1551",null,null,null,null,null,null,null,null,null,4,"MATH 1553","COE 2001"]
[null,"registration in August.",null,null,null,null,null,null,null,null,null,null,1,"MATH 3670","ME 3180","ME 3057","ME 3345","ME 3017","ME 3210",null,null,null,null,null,null,null,null,null,null,null,null,null,null,null,null,null,null,5,"MATH 1552","PHYS 2211",null,null,null,null,null,null,null,null,3,"MATH 2551","MATH 2552","PHYS 2212","CHEM 1310","ME 2202","CS 1371","ME 1670"]
[null,null,null,null,null,null,null,null,null,null,null,null,0,"ME Elective","Capstone","ISYE 3025","ECE 3741","ME 4056",null,null,null,null,null,null,null,null,null,null,null,null,null,null,null,null,null,null,null,4,"MATH 1553","COE 2001",null,null,null,null,null,null,null,null,2,"ECE 3710","COE 3001","MSE 2001","ME 2110","ME 3322","ME 3340","ME 2016"]
[null,null,null,null,null,null,null,null,null,null,null,null,"This pre-requisite chart depicts the pre-req chain only for the Design Elective option  ",null,null,null,null,null,null,null,null,null,null,null,null,null,null,null,null,null,null,null,null,null,null,null,null,3,"MATH 2551","MATH 2552","PHYS 2212","CHEM 1310","ME 2202","CS 1371","ME 1670",null,null,null,1,"MATH 3670","ME 3180","ME 3057","ME 3345","ME 3017","ME 3210"]
[null,null,null,null,null,null,null,null,null,null,null,null,"ME 3180, Machine Design (mechanical design). ~85% of ME students take this option.",null,null,null,null,null,null,null,null,null,null,null,null,null,null,null,null,null,null,null,null,null,null,null,null,2,"ECE 3710","COE 3001","MSE 2001","ME 2110","ME 3322","ME 3340","ME 2016",null,null,null,0,"ME Elective","Capstone","ISYE 3025","ECE 3741","ME 4056"]
[null,null,null,null,null,null,null,null,null,null,null,null,null,null,null,null,null,null,null,null,null,null,null,null,null,null,null,null,null,null,null,null,null,null,null,null,null,1,"MATH 3670","ME 3180","ME 3057","ME 3345","ME 3017","ME 3210",null,null,null,null,"This pre-requisite chart depicts the pre-req chain only for the Design Elective option  "]
[null,null,null,null,null,null,null,null,null,null,null,null,null,null,null,"Upon completion of these classes, you will have a minimum of (__) semesters ",null,null,null,null,null,null,null,null,null,null,null,null,null,null,null,null,null,null,null,null,null,0,"ME Elective","Capstone","ISYE 3025","ECE 3741","ME 4056",null,null,null,null,null,"ME 3180, Machine Design (mechanical design). ~85% of ME students take this option."]
[null,null,null,null,null,null,null,null,null,null,null,null,null,null,null,"remaining until graduation if you take ME 4315 for your design elective.",null,null,null,null,null,null,null,null,null,null,null,null,null,null,null,null,null,null,null,null,null,"This pre-requisite chart depicts the pre-req chain only for the Design Elective option  "]
[null,null,null,null,null,null,null,null,null,null,null,null,"Min Sem.",null,null,"Pre-Req Classes to be Completed",null,null,null,null,null,null,null,null,null,null,null,null,null,null,null,null,null,null,null,null,null,"ME 3180, Machine Design (mechanical design). ~85% of ME students take this option.",null,null,null,null,null,null,null,null,null,null,null,null,null,"Upon completion of these classes, you will have a minimum of (__) semesters "]
[null,null,null,null,null,null,null,null,null,null,null,null,7,"MATH 1551",null,null,null,null,null,null,null,null,null,null,null,null,null,null,null,null,null,null,null,null,null,null,null,null,null,null,null,null,null,null,null,null,null,null,null,null,null,"remaining until graduation if you take ME 4315 for your design elective."]
[null,null,null,null,null,null,null,null,null,null,null,null,6,"MATH 1552","PHYS 2211",null,null,null,null,null,null,null,null,null,null,null,null,null,null,null,null,null,null,null,null,null,null,null,null,null,"Upon completion of these classes, you will have a minimum of (__) semesters ",null,null,null,null,null,null,null,"Min Sem.",null,null,"Pre-Req Classes to be Completed"]
[null,null,null,null,null,null,null,null,null,null,null,null,5,"MATH 1553","COE 2001",null,null,null,null,null,null,null,null,null,null,null,null,null,null,null,null,null,null,null,null,null,null,null,null,null,"remaining until graduation if you take ME 4315 for your design elective.",null,null,null,null,null,null,null,7,"MATH 1551"]
[null,null,null,null,null,null,null,null,null,null,null,null,4,"MATH 2551","MATH 2552","ME 2202",null,null,null,null,null,null,null,null,null,null,null,null,null,null,null,null,null,null,null,null,null,"Min Sem.",null,null,"Pre-Req Classes to be Completed",null,null,null,null,null,null,null,6,"MATH 1552","PHYS 2211"]
[null,null,null,null,null,null,null,null,null,null,null,null,3,"PHYS 2212","CHEM 1310","CS 1371","ME 3322","ME 3340","ME 1670",null,null,null,null,null,null,null,null,null,null,null,null,null,null,null,null,null,null,7,"MATH 1551",null,null,null,null,null,null,null,null,null,5,"MATH 1553","COE 2001"]
[null,null,null,null,null,null,null,null,null,null,null,null,2,"ECE 3710","COE 3001","MSE 2001","ME 2110","ME 3345","ME 2016",null,null,null,null,null,null,null,null,null,null,null,null,null,null,null,null,null,null,6,"MATH 1552","PHYS 2211",null,null,null,null,null,null,null,null,4,"MATH 2551","MATH 2552","ME 2202"]
[null,null,null,null,null,null,null,null,null,null,null,null,1,"MATH 3670","ME 4315","ME 3057","ME 3210","ME 3017",null,null,null,null,null,null,null,null,null,null,null,null,null,null,null,null,null,null,null,5,"MATH 1553","COE 2001",null,null,null,null,null,null,null,null,3,"PHYS 2212","CHEM 1310","CS 1371","ME 3322","ME 3340","ME 1670"]
[null,null,null,null,null,null,null,null,null,null,null,null,0,"ME Elective","Capstone","ISYE 3025","ECE 3741","ME 4056",null,null,null,null,null,null,null,null,null,null,null,null,null,null,null,null,null,null,null,4,"MATH 2551","MATH 2552","ME 2202",null,null,null,null,null,null,null,2,"ECE 3710","COE 3001","MSE 2001","ME 2110","ME 3345","ME 2016"]
[null,null,null,null,null,null,null,null,null,null,null,null,"This pre-requisite chart depicts the pre-req chain only for the Design Elective option ",null,null,null,null,null,null,null,null,null,null,null,null,null,null,null,null,null,null,null,null,null,null,null,null,3,"PHYS 2212","CHEM 1310","CS 1371","ME 3322","ME 3340","ME 1670",null,null,null,null,1,"MATH 3670","ME 4315","ME 3057","ME 3210","ME 3017"]
[null,null,null,null,null,null,null,null,null,null,null,null,"ME 4315, Energy Systems Design (thermal design). ~15% of ME students take this option.",null,null,null,null,null,null,null,null,null,null,null,null,null,null,null,null,null,null,null,null,null,null,null,null,2,"ECE 3710","COE 3001","MSE 2001","ME 2110","ME 3345","ME 2016",null,null,null,null,0,"ME Elective","Capstone","ISYE 3025","ECE 3741","ME 4056"]
[null,null,null,null,null,null,null,null,null,null,null,null,null,null,null,null,null,null,null,null,null,null,null,null,null,null,null,null,null,null,null,null,null,null,null,null,null,1,"MATH 3670","ME 4315","ME 3057","ME 3210","ME 3017",null,null,null,null,null,"This pre-requisite chart depicts the pre-req chain only for the Design Elective option "]
[null,null,null,null,null,null,null,null,null,null,null,null,null,null,null,null,null,null,null,null,null,null,null,null,null,null,null,null,null,null,null,null,null,null,null,null,null,0,"ME Elective","Capstone","ISYE 3025","ECE 3741","ME 4056",null,null,null,null,null,"ME 4315, Energy Systems Design (thermal design). ~15% of ME students take this option."]
[null,null,null,null,null,null,null,null,null,null,null,null,null,null,null,null,null,null,null,null,null,null,null,null,null,null,null,null,null,null,null,null,null,null,null,null,null,"This pre-requisite chart depicts the pre-req chain only for the Design Elective option "]
[null,null,null,null,null,null,null,null,null,null,null,null,null,null,null,null,null,null,null,null,null,null,null,null,null,null,null,null,null,null,null,null,null,null,null,null,null,"ME 4315, Energy Systems Design (thermal design). ~15% of ME students take this option."]

{"sheet":"Temp2","index":2,"n_rows":57,"n_cols":12,"rows_kept":57,"cut":false,"hidden":true,"merged":[]}
["Class","TextBox","Prereq"]
["CHEM 1310",1,0,0,0,0,0,0,0,0,0,0]
["MATH 1551",2,0,0,0,0,0,0,0,0,0,0]
["MATH 1553",3,0,0,0,0,0,0,0,0,0,0]
["Legislative",4,0,0,0,0,0,0,0,0,0,0]
["ENGL 1101",5,0,0,0,0,0,0,0,0,0,0]
["PHYS 2211",6,2,0,0,0,0,0,0,7,0,0]
["MATH 1552",7,2,0,0,0,0,0,0,0,0,0]
["CS 1371",8,0,0,0,0,0,0,0,0,0,0]
["ME 1670",9,0,0,0,0,0,0,0,0,0,0]
["ENGL 1102",10,5,0,0,0,0,0,0,0,0,0]
["PHYS 2212",11,6,0,0,0,0,0,0,0,0,0]
["MATH 2551",12,7,3,0,0,0,0,0,0,0,0]
["ME 2110",13,9,0,0,0,0,0,0,15,0,0]
["MSE 2001",14,1,0,0,0,0,0,0,0,0,0]
["COE 2001",15,7,6,0,0,0,0,0,0,0,0]
["ECE 3710",16,11,0,0,0,0,0,0,0,0,0]
["MATH 2552",17,7,3,0,0,0,0,0,0,0,0]
["ME 2016",18,7,3,8,0,0,0,0,17,0,0]
["ME 2202",19,15,0,0,0,0,0,0,3,0,0]
["Social Sciemce",20,0,0,0,0,0,0,0,0,0,0]
["ECE 3741",21,16,0,0,0,0,0,0,0,0,0]
["COE 3001",22,15,0,0,0,0,0,0,17,0,0]
["ME 3322",23,6,17,0,0,0,0,0,0,0,0]
["ME 3340",24,19,12,17,0,0,0,0,23,0,0]
["Economics",25,0,0,0,0,0,0,0,0,0,0]
["Humanities",26,0,0,0,0,0,0,0,0,0,0]
["ME 3017",27,19,18,16,17,0,0,0,0,0,0]
["ME 3345",28,23,24,17,0,0,0,0,0,0,0]
["ME 3057",29,22,24,0,0,0,0,0,27,28,31]
["ISYE 3025",30,25,0,0,0,0,0,0,0,0,0]
["MATH 3670",31,12,0,0,0,0,0,0,0,0,0]
["Social Sciemce",32,0,0,0,0,0,0,0,0,0,0]
["ME 3180",33,13,22,0,0,0,0,0,0,0,0]
["ME 3210",34,14,13,22,0,0,0,0,0,0,0]
["ME 4056",35,29,28,27,31,0,0,0,0,0,0]
["Free 1000+",36,0,0,0,0,0,0,0,0,0,0]
["Free 1000+",37,0,0,0,0,0,0,0,0,0,0]
["Capstone",38,22,31,13,34,27,28,33,0,0,0]
["ME Elective",39,0,0,0,0,0,0,0,0,0,0]
["Humanities",{"$f":"B40+1","v":40},0,0,0,0,0,0,0,0,0,0]
["Free 2000+",{"$f":"B41+1","v":41},0,0,0,0,0,0,0,0,0,0]
["Free 2000+",42,0,0,0,0,0,0,0,0,0,0]
["Free 2000+",43,0,0,0,0,0,0,0,0,0,0]
["Ethics",44,0,0,0,0,0,0,0,0,0,0]
["Wellness",45,0,0,0,0,0,0,0,0,0,0]
["Extra",46,0,0,0,0,0,0,0,0,0,0]
["Extra",47,0,0,0,0,0,0,0,0,0,0]
["Extra",48,0,0,0,0,0,0,0,0,0,0]
["Extra",49,0,0,0,0,0,0,0,0,0,0]
["Extra",50,0,0,0,0,0,0,0,0,0,0]
["Extra",51,0,0,0,0,0,0,0,0,0,0]
["Extra",52,0,0,0,0,0,0,0,0,0,0]
["Extra",53,0,0,0,0,0,0,0,0,0,0]
["Extra",54,0,0,0,0,0,0,0,0,0,0]
["Extra",55,0,0,0,0,0,0,0,0,0,0]
["Extra",{"$f":"B56+1","v":56},0,0,0,0,0,0,0,0,0,0]